fUSD/lending_fUSD_20250820
["ID","MTS","AMOUNT","RATE_DAILY","PERIOD"]
[380341978,1755699046685,-835.79700967,0.00020789,2]
[380341979,1755699046697,-980.84207709,0.00020789,2]
[380341980,1755699046706,-151.0,0.000208,2]
[380341981,1755699046716,-2850.0,0.000208,3]
[380341982,1755699046728,-150.0,0.00020809,4]
[380341983,1755699046738,-168.3888056,0.00020822,2]
[380341984,1755699046747,-800.0,0.00020856,2]
[380341985,1755699046757,-800.0,0.00020856,2]
[380341986,1755699046766,-800.0,0.00020856,2]
[380341987,1755699046776,-396.0,0.00020863,2]
[380341988,1755699046785,-150.0,0.00020874,4]
[380341989,1755699046795,-150.0,0.00020874,4]
[380341990,1755699046805,-150.0,0.00020874,4]
[380341991,1755699046815,-150.0,0.00020874,4]
[380341992,1755699046824,-150.0,0.00020874,4]
[380341993,1755699046833,-150.0,0.00020874,4]
[380341994,1755699046843,-929.1287,0.000209,2]
[380341995,1755699046852,-150.0,0.00020939,4]
[380341996,1755699046861,-310.03654438,0.00020943,30]
[380341997,1755699046871,-800.0,0.00020966,2]
[380341998,1755699046880,-800.0,0.00020966,2]
[380341999,1755699046889,-800.0,0.00020966,2]
[380342000,1755699046899,-800.0,0.00020966,2]
[380342001,1755699046909,-200.0,0.00020966,2]
[380342002,1755699046918,-200.0,0.00020966,2]
[380342003,1755699046928,-200.0,0.00020966,2]
[380342004,1755699046937,-200.0,0.00020966,2]
[380342005,1755699046951,-200.0,0.00020966,2]
[380342006,1755699046960,-200.0,0.00020966,2]
[380342007,1755699046970,-200.0,0.00020966,2]
[380342008,1755699046979,-200.0,0.00020966,2]
[380342009,1755699046989,-200.0,0.00020966,2]
[380342010,1755699046999,-200.0,0.00020966,2]
[380342011,1755699047008,-800.0,0.00020966,2]
[380342012,1755699047018,-800.0,0.00020966,2]
[380342013,1755699047028,-200.0,0.00020966,2]
[380342014,1755699047038,-200.0,0.00020966,2]
[380342015,1755699047048,-800.0,0.00020966,2]
[380342016,1755699047057,-800.0,0.00020966,2]
[380342017,1755699047067,-800.0,0.00020966,2]
[380342018,1755699047075,-800.0,0.00020966,2]
[380342019,1755699047085,-800.0,0.00020966,2]
[380342020,1755699047095,-500.0,0.00020966,2]
[380342021,1755699047105,-432.0,0.00020966,2]
[380342022,1755699047115,-200.0,0.00020966,2]
[380342023,1755699047125,-200.0,0.00020966,2]
[380342024,1755699047135,-200.0,0.00020966,2]
[380342025,1755699047144,-200.0,0.00020966,2]
[380342026,1755699047154,-200.0,0.00020966,2]
[380342027,1755699047165,-200.0,0.00020966,2]
[380342028,1755699047175,-800.0,0.00020966,2]
[380342029,1755699047185,-800.0,0.00020966,2]
[380342030,1755699047198,-800.0,0.00020966,2]
[380342031,1755699047207,-800.0,0.00020966,2]
[380342032,1755699047217,-200.0,0.00020966,2]
[380342033,1755699047226,-200.0,0.00020966,2]
[380342034,1755699047235,-200.0,0.00020966,2]
[380342035,1755699047245,-920.0,0.00020966,2]
[380342036,1755699047255,-200.0,0.00020966,2]
[380342037,1755699047264,-200.0,0.00020966,2]
[380342038,1755699047273,-200.0,0.00020966,2]
[380342039,1755699047283,-200.0,0.00020966,2]
[380342040,1755699047292,-200.0,0.00020966,2]
[380342041,1755699047302,-800.0,0.00020966,2]
[380342042,1755699047311,-800.0,0.00020966,2]
[380342043,1755699047321,-800.0,0.00020966,2]
[380342044,1755699047330,-800.0,0.00020966,2]
[380342045,1755699047339,-800.0,0.00020966,2]
[380342046,1755699047349,-800.0,0.00020966,2]
[380342047,1755699047358,-800.0,0.00020966,2]
[380342048,1755699047368,-800.0,0.00020966,2]
[380342049,1755699047377,-800.0,0.00020966,2]
[380342050,1755699047388,-800.0,0.00020966,2]
[380342051,1755699047398,-800.0,0.00020966,2]
[380342052,1755699047408,-800.0,0.00020966,2]
[380342053,1755699047417,-200.0,0.00020966,2]
[380342054,1755699047426,-200.0,0.00020966,2]
[380342055,1755699047437,-200.0,0.00020966,2]
[380342056,1755699047451,-200.0,0.00020966,2]
[380342057,1755699047460,-206.0,0.00020966,2]
[380342058,1755699047469,-800.0,0.00020966,2]
[380342059,1755699047479,-800.0,0.00020966,2]
[380342060,1755699047488,-800.0,0.00020966,2]
[380342061,1755699047497,-800.0,0.00020966,2]
[380342062,1755699047506,-200.0,0.00020966,2]
[380342063,1755699047515,-800.0,0.00020966,2]
[380342064,1755699047525,-800.0,0.00020966,2]
[380342065,1755699047534,-200.0,0.00020966,2]
[380342066,1755699047543,-200.0,0.00020966,2]
[380342067,1755699047552,-200.0,0.00020966,2]
[380342068,1755699047561,-200.0,0.00020966,2]
[380342069,1755699047570,-800.0,0.00020966,2]
[380342070,1755699047580,-800.0,0.00020966,2]
[380342071,1755699047589,-800.0,0.00020966,2]
[380342072,1755699047599,-800.0,0.00020966,2]
[380342073,1755699047608,-800.0,0.00020966,2]
[380342074,1755699047617,-800.0,0.00020966,2]
[380342075,1755699047627,-800.0,0.00020966,2]
[380342076,1755699047636,-800.0,0.00020966,2]
[380342077,1755699047646,-800.0,0.00020966,2]
[380342078,1755699047655,-800.0,0.00020966,2]
[380342079,1755699047664,-800.0,0.00020966,2]
[380342080,1755699047674,-800.0,0.00020966,2]
[380342081,1755699047683,-800.0,0.00020966,2]
[380342082,1755699047692,-800.0,0.00020966,2]
[380342083,1755699047702,-800.0,0.00020966,2]
[380342084,1755699047712,-800.0,0.00020966,2]
[380342085,1755699047722,-800.0,0.00020966,2]
[380342086,1755699047731,-800.0,0.00020966,2]
[380342087,1755699047740,-800.0,0.00020966,2]
[380342088,1755699047750,-800.0,0.00020966,2]
[380342089,1755699047759,-800.0,0.00020966,2]
[380342090,1755699047768,-20000.0,0.00021,2]
[380342091,1755699047778,-1168.53240569,0.00021,2]
[380342092,1755699047788,-192.87748126,0.00021,2]
[380342093,1755699047798,-2614.0,0.00021,2]
[380342094,1755699047808,-200.0,0.00021,7]
[380342095,1755699047817,-1000.0,0.00021,14]
[380342096,1755699047827,-1000.0,0.00021,14]
[380342097,1755699047836,-156.14248592,0.00021,4]
[380342098,1755699047845,-3600.0,0.00021,22]
[380342099,1755699047855,-7387.77148804,0.00021,2]
[380342100,1755699047865,-500.00026509,0.00021,14]
[380342101,1755699047874,-159.69284424,0.00021,2]
[380342102,1755699047884,-1850.0,0.00021,3]
[380342103,1755699047893,-400.0,0.00021,2]
[380342104,1755699047903,-835.79700967,0.00021011,2]
[380342105,1755699047912,-980.84207709,0.00021011,2]
[380342106,1755699047922,-167.0,0.00021028,2]
[380342107,1755699047931,-500.0,0.00021028,2]
[380342108,1755699047941,-214.83181081,0.00021033,20]
[380342109,1755699047952,-150.0,0.00021057,4]
[380342110,1755699047962,-150.0,0.00021068,4]
[380342111,1755699047971,-152.0,0.00021078,7]
[380342112,1755699047981,-151.0,0.00021096,2]
[380342113,1755699047991,-417.0,0.000211,2]
[380342114,1755699048001,-2504.025,0.000211,3]
[380342115,1755699048011,-150.0,0.00021197,4]
[380342116,1755699048021,-835.79700967,0.00021233,2]
[380342117,1755699048031,-151.47503791,0.00021233,2]
[380342118,1755699048041,-980.84207709,0.00021233,2]
[380342119,1755699048054,-2700.0,0.00021235,15]
[380342120,1755699048064,-150.0,0.0002124,4]
[380342121,1755699048074,-150.0,0.0002124,4]
[380342122,1755699048084,-150.0,0.0002124,4]
[380342123,1755699048093,-150.0,0.0002124,4]
[380342124,1755699048102,-150.0,0.0002124,4]
[380342125,1755699048112,-150.0,0.0002124,4]
[380342126,1755699048121,-500.0,0.00021302,2]
[380342127,1755699048131,-150.0,0.00021326,4]
[380342128,1755699048141,-6227.63,0.0002137,2]
[380342129,1755699048151,-174.61919141,0.0002137,2]
[380342130,1755699048160,-214.83181081,0.00021387,21]
[380342131,1755699048169,-309.29654756,0.00021389,2]
[380342132,1755699048179,-150.0,0.00021399,2]
[380342133,1755699048189,-150.0,0.00021423,4]
[380342134,1755699048199,-150.0,0.00021423,4]
[380342135,1755699048208,-150.0,0.00021423,4]
[380342136,1755699048217,-150.0,0.00021423,4]
[380342137,1755699048227,-835.79700967,0.00021456,2]
[380342138,1755699048238,-980.84207709,0.00021456,2]
[380342139,1755699048248,-150.0,0.00021456,4]
[380342140,1755699048257,-150.0,0.0002148,2]
[380342141,1755699048267,-217.4263457,0.000215,2]
[380342142,1755699048276,-200.0,0.0002151,7]
[380342143,1755699048286,-500.0,0.00021576,2]
[380342144,1755699048296,-152.0,0.00021583,8]
[380342145,1755699048306,-150.0,0.00021585,4]
[380342146,1755699048315,-6431.4,0.000216,2]
[380342147,1755699048325,-157.64,0.00021605,2]
[380342148,1755699048335,-150.0,0.00021606,4]
[380342149,1755699048345,-150.0,0.00021606,4]
[380342150,1755699048355,-150.0,0.00021606,4]
[380342151,1755699048365,-152.0,0.00021644,2]
[380342152,1755699048375,-1262.39366218,0.00021646,15]
[380342153,1755699048384,-835.79700967,0.00021678,2]
[380342154,1755699048394,-980.84207709,0.00021678,2]
[380342155,1755699048404,-8548.53183403,0.000217,2]
[380342156,1755699048420,-1138.75410982,0.000217,2]
[380342157,1755699048433,-1228.1999998,0.000217,2]
[380342158,1755699048447,-13801.66364903,0.000217,2]
[380342159,1755699048460,-14152.7870857,0.000217,2]
[380342160,1755699048472,-458.10668144,0.000217,2]
[380342161,1755699048486,-1708.54572201,0.000217,2]
[380342162,1755699048502,-4133.12900005,0.000217,2]
[380342163,1755699049223,-267.37,0.00020552,2]
[380342164,1755699049236,-597.94370517,0.00020552,2]
[380342165,1755699049246,-22669.24191812,0.000217,2]
[380342166,1755699049256,-1000.0,0.00021713,2]
[380342167,1755699049267,-150.0,0.00021714,4]
[380342168,1755699049276,-214.83181081,0.00021741,23]
[380342169,1755699049286,-655.04448512,0.00021789,2]
[380342170,1755699049297,-150.0,0.00021789,4]
[380342171,1755699049307,-2771.0,0.000218,8]
[380342172,1755699049316,-1000.0,0.00021807,2]
[380342173,1755699049327,-150.0,0.00021843,4]
[380342174,1755699049337,-500.0,0.0002185,2]
[380342175,1755699049347,-5079.17887,0.0002185,30]
[380342176,1755699049357,-374.63582317,0.0002188,2]
[380342177,1755699049366,-151.0,0.00021899,2]
[380342178,1755699049376,-1207.03487863,0.00021899,4]
[380342179,1755699049385,-1207.03487863,0.00021899,4]
[380342180,1755699049395,-1207.03487863,0.00021899,4]
[380342181,1755699049405,-1207.03487863,0.00021899,4]
[380342182,1755699049416,-1207.03487863,0.00021899,4]
[380342183,1755699049425,-1207.03487863,0.00021899,4]
[380342184,1755699049435,-1207.03487863,0.00021899,4]
[380342185,1755699049453,-1207.03487863,0.00021899,4]
[380342186,1755699049463,-1207.03487863,0.00021899,4]
[380342187,1755699049473,-1207.03487863,0.00021899,4]
[380342188,1755699049483,-1207.03487863,0.00021899,4]
[380342189,1755699049493,-1207.03487863,0.00021899,4]
[380342190,1755699049503,-1207.03487863,0.00021899,4]
[380342191,1755699049513,-1207.03487863,0.00021899,4]
[380342192,1755699049523,-1207.03487863,0.00021899,4]
[380342193,1755699049533,-1207.03487863,0.00021899,4]
[380342194,1755699049543,-1207.03487863,0.00021899,4]
[380342195,1755699049552,-1207.03487863,0.00021899,4]
[380342196,1755699049562,-1207.03487863,0.00021899,4]
[380342197,1755699049572,-990.20374699,0.00021899,4]
[380342198,1755699194086,2000.0,0.00026024,120]
[380342199,1755699199279,500.0,0.00026024,120]
[380342211,1755699327974,-337.55280322,0.00025,60]
[380342212,1755699327999,-634.423117,0.00025,60]
[380342213,1755699328035,-600.0,0.00027397,80]
[380342214,1755699328063,-1000.0,0.00027671,120]
[380342215,1755699328090,-600.0,0.000279,120]
[380342216,1755699328116,-1000.0,0.00027945,120]
[380342217,1755699328143,-302.6078907,0.00028,120]
[380342218,1755699328170,-700.0,0.00028,120]
[380342219,1755699328196,-1000.0,0.00028219,120]
[380342220,1755699328226,-419.67098981,0.00028297,120]
[380342221,1755699328252,-1000.0,0.00028493,120]
[380342222,1755699328278,-1000.0,0.00028767,120]
[380342223,1755699328302,-600.0,0.000289,120]
[380342224,1755699328328,-220.0,0.00029,60]
[380342225,1755699328353,-1000.0,0.00029041,120]
[380342226,1755699328378,-1444.0,0.00029041,120]
[380342227,1755699328404,-1000.0,0.00029315,120]
[380342228,1755699328430,-500.0,0.00029396,120]
[380342229,1755699328457,-1000.0,0.00029589,120]
[380342230,1755699328483,-1000.0,0.00029863,120]
[380342231,1755699328508,-947.92691292,0.000299,120]
[380342232,1755699328537,-1093.12385467,0.0003,120]
[380342233,1755699328561,-1120.74571784,0.0003,120]
[380342234,1755699328587,-765.62502303,0.0003,120]
[380342235,1755699328612,-990.85504448,0.0003,60]
[380342236,1755699328637,-313.0,0.0003,120]
[380342237,1755699328661,-334.46598755,0.0003,60]
[380342238,1755699328686,-216.0,0.0003,120]
[380342239,1755699328715,-1000.0,0.0003,60]
[380342240,1755699328740,-1000.0,0.0003,60]
[380342241,1755699328766,-1000.0,0.0003,60]
[380342242,1755699328791,-1000.0,0.0003,60]
[380342243,1755699328815,-1000.0,0.0003,60]
[380342244,1755699328840,-1000.0,0.0003,60]
[380342245,1755699328864,-1000.0,0.0003,60]
[380342246,1755699328889,-1000.0,0.0003,60]
[380342247,1755699328914,-1000.0,0.0003,60]
[380342248,1755699328938,-1000.0,0.0003,60]
[380342249,1755699328964,-1000.0,0.0003,60]
[380342250,1755699328990,-1000.0,0.0003,60]
[380342251,1755699329014,-1000.0,0.0003,60]
[380342252,1755699329039,-500.0,0.0003,60]
[380342253,1755699329064,-500.0,0.0003,60]
[380342254,1755699329088,-500.0,0.0003,60]
[380342255,1755699329113,-500.0,0.0003,60]
[380342256,1755699329138,-500.0,0.0003,60]
[380342257,1755699329164,-500.0,0.0003,60]
[380342258,1755699329189,-500.0,0.0003,60]
[380342259,1755699329215,-500.0,0.0003,60]
[380342260,1755699329240,-500.0,0.0003,60]
[380342261,1755699329265,-500.0,0.0003,60]
[380342262,1755699329290,-5439.9812399,0.0003,120]
[380342263,1755699329314,-1502.36230674,0.0003,120]
[380342264,1755699329340,-1000.0,0.0003,120]
[380342265,1755699329365,-700.0,0.0003,120]
[380342266,1755699329390,-1912.76731583,0.0003,120]
[380342267,1755699329416,-2029.90018408,0.0003,120]
[380342268,1755699329844,-372.81869259,0.0003,120]
[380342269,1755699329870,-372.0,0.0003,120]
[380342270,1755699329895,-200.0,0.0003,120]
[380342271,1755699329920,-500.0,0.0003,120]
[380342272,1755699329945,-394.35541975,0.0003,120]
[380342273,1755699329972,-212.04014818,0.0003,120]
[380342274,1755699329998,-2182.78501549,0.000301,120]
[380342275,1755699330024,-1800.0,0.0003013,120]
[380342276,1755699330048,-280.85672162,0.0003013,120]
[380342277,1755699330072,-451.81074341,0.0003013,120]
[380342278,1755699330099,-686.03,0.00030136,120]
[380342279,1755699330123,-981.13,0.00030136,60]
[380342280,1755699330149,-400.0,0.00030136,120]
[380342281,1755699330174,-400.0,0.00030136,120]
[380342282,1755699330198,-400.0,0.00030136,120]
[380342283,1755699330227,-400.0,0.00030136,120]
[380342284,1755699330253,-400.0,0.00030136,120]
[380342285,1755699330279,-400.0,0.00030136,120]
[380342286,1755699330304,-400.0,0.00030136,120]
[380342287,1755699330330,-400.0,0.00030136,120]
[380342288,1755699330355,-400.0,0.00030136,120]
[380342289,1755699330380,-400.0,0.00030136,120]
[380342290,1755699330406,-400.0,0.00030136,120]
[380342291,1755699330435,-400.0,0.00030136,120]
[380342292,1755699330483,-400.0,0.00030136,120]
[380342293,1755699330509,-400.0,0.00030136,120]
[380342294,1755699330535,-400.0,0.00030136,120]
[380342295,1755699330560,-400.0,0.00030136,120]
[380342296,1755699330585,-400.0,0.00030136,120]
[380342297,1755699330612,-400.0,0.00030136,120]
[380342298,1755699330637,-400.0,0.00030136,120]
[380342299,1755699330662,-400.0,0.00030136,120]
[380342300,1755699330686,-400.0,0.00030136,120]
[380342301,1755699330712,-400.0,0.00030136,120]
[380342302,1755699330737,-400.0,0.00030136,120]
[380342303,1755699330762,-400.0,0.00030136,120]
[380342304,1755699330792,-400.0,0.00030136,120]
[380342305,1755699330818,-400.0,0.00030136,120]
[380342306,1755699330843,-400.0,0.00030136,120]
[380342307,1755699330869,-400.0,0.00030136,120]
[380342308,1755699330894,-400.0,0.00030136,120]
[380342309,1755699330920,-400.0,0.00030136,120]
[380342310,1755699330946,-400.0,0.00030136,120]
[380342311,1755699330975,-400.0,0.00030136,120]
[380342312,1755699331001,-400.0,0.00030136,120]
[380342313,1755699331035,-400.0,0.00030136,120]
[380342314,1755699331062,-400.0,0.00030136,120]
[380342315,1755699331090,-1021.58,0.00030136,120]
[380342316,1755699331119,-400.0,0.00030136,120]
[380342317,1755699331148,-1394.51,0.00030136,120]
[380342318,1755699331177,-400.0,0.00030136,120]
[380342319,1755699331205,-1472.86,0.00030136,120]
[380342320,1755699331242,-400.0,0.00030136,120]
[380342321,1755699331270,-2200.62,0.00030136,120]
[380342322,1755699331298,-400.0,0.00030136,120]
[380342323,1755699331326,-400.0,0.00030136,120]
[380342324,1755699331356,-400.0,0.00030136,120]
[380342325,1755699331384,-400.0,0.00030136,120]
[380342326,1755699331410,-400.0,0.00030136,120]
[380342327,1755699331437,-400.0,0.00030136,120]
[380342328,1755699331468,-400.0,0.00030136,120]
[380342329,1755699331495,-454.8,0.00030136,120]
[380342330,1755699331527,-400.0,0.00030136,120]
[380342331,1755699331560,-704.4,0.00030136,120]
[380342332,1755699331593,-400.0,0.00030136,120]
[380342333,1755699331623,-1508.72,0.00030136,120]
[380342334,1755699331650,-1684.25,0.00030136,120]
[380342335,1755699331676,-807.75,0.00030136,120]
[380342336,1755699331702,-400.0,0.00030136,120]
[380342337,1755699331735,-436.83,0.00030136,120]
[380342338,1755699331762,-706.42,0.00030136,120]
[380342339,1755699331788,-706.35,0.00030136,120]
[380342340,1755699331815,-400.0,0.00030136,120]
[380342341,1755699331842,-400.0,0.00030136,120]
[380342342,1755699331869,-400.0,0.00030136,120]
[380342343,1755699331897,-649.79,0.00030136,120]
[380342344,1755699331924,-477.33,0.00030136,120]
[380342345,1755699331951,-654.03,0.00030136,120]
[380342346,1755699331982,-1740.22,0.00030136,120]
[380342347,1755699332010,-400.0,0.00030136,120]
[380342348,1755699332036,-400.0,0.00030136,120]
[380342349,1755699332063,-493.52,0.00030136,120]
[380342350,1755699332090,-463.98,0.00030136,120]
[380342351,1755699332117,-2506.94,0.00030136,120]
[380342352,1755699332146,-455.02,0.00030136,120]
[380342353,1755699332173,-400.0,0.00030136,120]
[380342354,1755699332201,-400.0,0.00030136,120]
[380342355,1755699332233,-480.05,0.00030136,120]
[380342356,1755699332262,-1387.18,0.00030136,120]
[380342357,1755699332289,-400.0,0.00030136,120]
[380342358,1755699332318,-400.0,0.00030136,120]
[380342359,1755699332346,-1695.08,0.00030136,120]
[380342360,1755699332379,-400.0,0.00030136,120]
[380342361,1755699332406,-1628.02,0.00030136,120]
[380342362,1755699332433,-400.0,0.00030136,120]
[380342363,1755699332462,-400.0,0.00030136,120]
[380342364,1755699332488,-1247.37,0.00030136,120]
[380342365,1755699332514,-400.0,0.00030136,120]
[380342366,1755699332543,-700.37,0.00030136,120]
[380342367,1755699332570,-547.18,0.00030136,120]
[380342368,1755699332599,-400.0,0.00030136,120]
[380342369,1755699332628,-400.0,0.00030136,120]
[380342370,1755699332656,-1058.71,0.00030136,120]
[380342371,1755699332684,-604.21,0.00030136,120]
[380342372,1755699332716,-400.0,0.00030136,120]
[380342373,1755699332743,-679.55,0.00030136,120]
[380342374,1755699332771,-400.0,0.00030136,120]
[380342375,1755699332797,-1501.66,0.00030136,120]
[380342376,1755699332825,-400.0,0.00030136,120]
[380342377,1755699332852,-400.0,0.00030136,120]
[380342378,1755699332879,-400.0,0.00030136,120]
[380342379,1755699332907,-1724.07,0.00030136,120]
[380342380,1755699332934,-400.0,0.00030136,120]
[380342381,1755699332967,-882.44,0.00030136,120]
[380342382,1755699332994,-970.36,0.00030136,120]
[380342383,1755699333024,-400.0,0.00030136,120]
[380342384,1755699333052,-400.0,0.00030136,120]
[380342385,1755699333516,-400.0,0.00030136,120]
[380342386,1755699333547,-400.0,0.00030136,120]
[380342387,1755699333575,-500.0,0.00030136,120]
[380342388,1755699333602,-500.0,0.00030136,120]
[380342389,1755699333632,-512.87758051,0.00030136,120]
[380342390,1755699333660,-610.89,0.00030136,120]
[380342391,1755699333688,-1076.85,0.00030136,120]
[380342392,1755699333719,-1648.04,0.00030136,120]
[380342393,1755699333746,-1405.17,0.00030136,120]
[380342394,1755699333773,-1026.4,0.00030136,120]
[380342395,1755699333799,-574.78,0.00030136,120]
[380342396,1755699333827,-591.22,0.00030136,120]
[380342397,1755699333853,-604.12,0.00030136,120]
[380342398,1755699333880,-400.0,0.00030136,120]
[380342399,1755699333909,-1522.73,0.00030136,120]
[380342400,1755699333936,-665.34,0.00030136,120]
[380342401,1755699333967,-445.92,0.00030136,120]
[380342402,1755699333995,-400.0,0.00030136,120]
[380342403,1755699334022,-1308.29,0.00030136,120]
[380342404,1755699334048,-400.0,0.00030136,120]
[380342405,1755699334075,-400.0,0.00030136,120]
[380342406,1755699334102,-458.47,0.00030136,120]
[380342407,1755699334130,-400.0,0.00030136,120]
[380342408,1755699334156,-400.0,0.00030136,120]
[380342409,1755699334182,-500.0,0.00030136,120]
[380342410,1755699334211,-500.0,0.00030136,120]
[380342411,1755699334239,-500.0,0.00030136,120]
[380342412,1755699334268,-500.0,0.00030136,120]
[380342413,1755699334295,-500.0,0.00030136,120]
[380342414,1755699334323,-500.0,0.00030136,120]
[380342415,1755699334351,-752.7,0.00030136,120]
[380342416,1755699334380,-500.0,0.00030136,120]
[380342417,1755699334407,-400.0,0.00030136,120]
[380342418,1755699334436,-500.0,0.00030136,120]
[380342419,1755699334465,-508.74967874,0.00030136,120]
[380342420,1755699334493,-400.0,0.00030136,120]
[380342421,1755699334519,-400.0,0.00030136,120]
[380342422,1755699334546,-400.0,0.00030136,120]
[380342423,1755699334573,-575.76,0.00030136,120]
[380342424,1755699334601,-400.0,0.00030136,120]
[380342425,1755699334628,-846.27,0.00030136,120]
[380342426,1755699334654,-400.0,0.00030136,120]
[380342427,1755699334680,-1514.99,0.00030136,120]
[380342428,1755699334706,-400.0,0.00030136,120]
[380342429,1755699334735,-400.0,0.00030136,120]
[380342430,1755699334762,-400.0,0.00030136,120]
[380342431,1755699334789,-638.38,0.00030136,120]
[380342432,1755699334815,-1224.66,0.00030136,120]
[380342433,1755699334841,-400.0,0.00030136,120]
[380342434,1755699334867,-1228.8,0.00030136,120]
[380342435,1755699334893,-1375.93,0.00030136,120]
[380342436,1755699334919,-572.95,0.00030136,120]
[380342437,1755699334945,-400.0,0.00030136,120]
[380342438,1755699334970,-400.0,0.00030136,120]
[380342439,1755699334995,-400.0,0.00030136,120]
[380342440,1755699335020,-400.0,0.00030136,120]
[380342441,1755699335046,-801.51,0.00030136,120]
[380342442,1755699335071,-400.0,0.00030136,120]
[380342443,1755699335096,-400.0,0.00030136,120]
[380342444,1755699335122,-645.79,0.00030136,120]
[380342445,1755699335148,-651.33,0.00030136,120]
[380342446,1755699335174,-400.0,0.00030136,120]
[380342447,1755699335200,-418.53,0.00030136,120]
[380342448,1755699335228,-1506.85,0.00030136,120]
[380342449,1755699335255,-1242.25,0.00030136,120]
[380342450,1755699335282,-501.15638203,0.00030136,120]
[380342451,1755699335309,-1238.53,0.00030136,120]
[380342452,1755699335336,-400.0,0.00030136,120]
[380342453,1755699335362,-401.22,0.00030136,120]
[380342454,1755699335388,-1075.44,0.00030136,120]
[380342455,1755699335414,-400.0,0.00030136,120]
[380342456,1755699335440,-400.0,0.00030136,120]
[380342457,1755699335467,-397.25276404,0.00030136,120]
[380342458,1755699335493,-400.0,0.00030136,120]
[380342459,1755699335519,-400.0,0.00030136,120]
[380342460,1755699335546,-517.66,0.00030136,120]
[380342461,1755699335571,-949.71,0.00030136,120]
[380342462,1755699335597,-1026.94,0.00030136,120]
[380342463,1755699335622,-400.0,0.00030136,120]
[380342464,1755699335648,-877.05,0.00030136,120]
[380342465,1755699335673,-520.99,0.00030136,120]
[380342466,1755699335698,-500.0,0.00030136,120]
[380342467,1755699335723,-500.0,0.00030136,120]
[380342468,1755699335747,-500.0,0.00030136,120]
[380342469,1755699335772,-500.0,0.00030136,120]
[380342470,1755699335796,-500.0,0.00030136,120]
[380342471,1755699335821,-500.0,0.00030136,120]
[380342472,1755699335847,-500.0,0.00030136,120]
[380342473,1755699335872,-500.0,0.00030136,120]
[380342474,1755699335896,-500.0,0.00030136,120]
[380342475,1755699335921,-500.0,0.00030136,120]
[380342476,1755699335946,-500.0,0.00030136,120]
[380342477,1755699335972,-500.0,0.00030136,120]
[380342478,1755699335998,-400.0,0.00030136,120]
[380342479,1755699336023,-500.0,0.00030136,120]
[380342480,1755699336047,-500.0,0.00030136,120]
[380342481,1755699336072,-500.0,0.00030136,120]
[380342482,1755699336097,-500.0,0.00030136,120]
[380342483,1755699336121,-734.16,0.00030136,120]
[380342484,1755699336146,-1284.16,0.00030136,120]
[380342485,1755699336170,-500.0,0.00030136,120]
[380342486,1755699336195,-500.0,0.00030136,120]
[380342487,1755699336222,-400.0,0.00030136,120]
[380342488,1755699336247,-400.0,0.00030136,120]